bitfinex/quotes_SOLUSD_20250809
["timestamp","ask_amount","ask_price","bid_price","bid_amount"]
[1754706804191,5.6129546,178.16,178.14,0.69]
[1754706804565,2.08795099,178.15,178.14,0.69]
[1754706805092,7.70119825,178.15,178.14,0.69]
[1754706806160,7.84335982,178.15,178.14,0.69]
[1754706806366,7.84335982,178.15,178.12,0.69]
[1754706806578,2.08795099,178.14,178.12,0.69]
[1754706807274,7.70167937,178.14,178.12,0.69]
[1754706807481,5.61372838,178.14,178.1,0.69]
[1754706807666,5.48194487,178.13,178.1,0.69]
[1754706807990,3.39949248,178.13,178.1,0.69]
[1754706808160,0.14216157,178.13,178.1,0.69]
[1754706809161,5.75621959,178.13,178.11,0.69]
[1754706809990,2.07979885,178.12,178.08,3.25733091]
[1754706810285,2.07979885,178.12,178.09,3.94733091]
[1754706810468,2.07979885,178.12,178.09,3.25733091]
[1754706810669,2.07979885,178.12,178.1,0.69]
[1754706810885,2.07979885,178.12,178.11,0.69]
[1754706811080,39.88,178.14,178.11,3.94733091]
[1754706811261,16.870518,178.13,178.12,3.94733091]
[1754706811463,16.870518,178.13,178.12,0.69]
[1754706811676,16.870518,178.13,178.12,3.94733091]
[1754706811881,18.94861957,178.13,178.1,3.94733091]
[1754706812080,16.870518,178.13,178.1,3.25733091]
[1754706812279,16.870518,178.13,178.11,0.69]
[1754706812484,16.870518,178.13,178.11,3.94733091]
[1754706812673,16.870518,178.13,178.11,3.25733091]
[1754706812875,39.92,178.14,178.12,0.69]
[1754706813079,2.07739446,178.13,178.12,0.69]
[1754706814001,56.790518,178.14,178.12,0.69]
[1754706814205,2.0767999,178.13,178.12,0.69]
[1754706814715,2.0767999,178.13,178.12,0.68]
[1754706816980,2.0767999,178.13,178.1,3.93733091]
[1754706817180,2.0767999,178.12,178.1,3.93733091]
[1754706817407,62.40411113,178.14,178.1,3.93733091]
[1754706817693,2.07485586,178.13,178.1,3.93733091]
[1754706817919,2.07485586,178.12,178.1,3.93733091]
[1754706818085,63.08411213,178.14,178.1,0.68]
[1754706818404,2.07481965,178.13,178.1,3.93733091]
[1754706818612,2.07481965,178.12,178.1,3.93733091]
[1754706818902,39.92,178.14,178.11,0.68]
[1754706819075,2.07459519,178.13,178.11,0.68]
[1754706819279,18.94511319,178.12,178.11,0.68]
[1754706819898,18.94511319,178.12,178.1,3.25733091]
[1754706820083,2.07441238,178.11,178.1,3.93733091]
[1754706820282,16.870518,178.12,178.1,3.93733091]
[1754706820484,2.07417635,178.11,178.1,3.93733091]
[1754706820806,2.07431333,178.11,178.1,3.93733091]
[1754706821302,16.870518,178.12,178.1,3.93733091]
[1754706821488,16.870518,178.12,178.11,0.68]
[1754706821684,18.94493315,178.12,178.1,3.25733091]
[1754706821897,2.07441515,178.11,178.09,3.99733091]
[1754706822095,6.29396138,178.13,178.09,3.99733091]
[1754706822285,16.870518,178.11,178.09,3.99733091]
[1754706822795,16.870518,178.11,178.1,0.68]
[1754706822984,18.94576978,178.11,178.1,0.68]
[1754706823186,18.94576978,178.11,178.1,3.93733091]
[1754706823412,2.07525178,178.11,178.1,3.93733091]
[1754706823707,16.871468,178.11,178.1,3.93733091]
[1754706824395,46.21364253,178.14,178.1,3.93733091]
[1754706824593,2.07572643,178.13,178.11,0.68]
[1754706824800,2.07572643,178.12,178.11,3.93733091]
[1754706825193,2.07573081,178.12,178.11,3.93733091]
[1754706825506,18.94719781,178.12,178.11,3.93733091]
[1754706825806,2.07573081,178.12,178.11,3.93733091]
[1754706826000,5.615302,178.14,178.11,3.93733091]
[1754706826201,2.07589183,178.13,178.12,3.93733091]
[1754706828790,2.07589183,178.13,178.12,0.68]
[1754706828988,2.07589183,178.13,178.12,3.93733091]
[1754706829595,2.07589183,178.13,178.1,3.93733091]
[1754706829800,2.07589183,178.12,178.1,3.93733091]
[1754706830000,0.68,178.13,178.1,3.93733091]
[1754706830203,2.07727902,178.12,178.1,3.93733091]
[1754706830402,0.68,178.13,178.1,3.93733091]
[1754706830614,2.07791195,178.12,178.1,3.93733091]
[1754706830913,0.68,178.13,178.1,3.93733091]
[1754706831091,2.07793207,178.12,178.1,3.93733091]
[1754706831292,0.68,178.13,178.1,3.93733091]
[1754706831591,2.07844896,178.12,178.1,3.93733091]
[1754706831898,2.07863784,178.11,178.1,3.93733091]
[1754706832099,2.07863784,178.11,178.09,0.06]
[1754706832289,6.29388519,178.13,178.09,0.06]
[1754706832290,0.68,178.1,178.09,0.06]
[1754706832491,2.75917509,178.1,178.09,0.06]
[1754706835195,13.6293856,178.1,178.09,0.06]
[1754706835616,30.5046496,178.1,178.09,0.06]
[1754706835795,25.39142379,178.1,178.09,0.06]
[1754706835994,8.37399822,178.1,178.09,0.06]
[1754706837004,8.37593641,178.1,178.09,0.06]
[1754706839010,14.16916241,178.1,178.09,0.06]
[1754706839798,14.171313,178.1,178.09,0.06]
[1754706839999,7.87648987,178.1,178.09,0.74]
[1754706840213,2.08326387,178.1,178.09,0.74]
[1754706840521,2.08326387,178.1,178.09,5.85322581]
[1754706847226,2.08326387,178.1,178.09,0.74]
[1754706847942,2.08326387,178.1,178.09,5.85322581]
[1754706848704,2.75326387,178.1,178.09,0.06]
[1754706848905,2.75326387,178.1,178.09,5.17322581]
[1754706849227,2.08326387,178.1,178.09,5.17322581]
[1754706853629,2.09987521,178.1,178.09,5.17322581]
[1754706854738,2.09987521,178.1,178.09,3.33169395]
[1754706855414,2.09987521,178.1,178.09,0.06]
[1754706857810,2.09987521,178.1,178.09,0.73]
[1754706859223,2.09987521,178.1,178.09,0.06]
[1754706863741,8.38469834,178.1,178.09,0.06]
[1754706864723,11.65639229,178.1,178.09,0.06]
[1754706865134,8.38469834,178.1,178.09,0.06]
[1754706868431,2.76987521,178.1,178.09,0.06]
[1754706877446,8.38469834,178.1,178.09,0.06]
[1754706879151,13.09993651,178.1,178.09,0.06]
[1754706883754,51.562877,178.1,178.09,0.06]
[1754706883964,55.494571,178.1,178.09,0.06]
[1754706884254,56.94634767,178.1,178.09,0.06]
[1754706885040,10.75503983,178.1,178.09,0.72]
[1754706885255,2.0994419,178.1,178.09,0.72]
[1754706885647,2.0994419,178.1,178.09,0.06]
[1754706886258,2.0994419,178.1,178.02,13.0867758]
[1754706886259,16.86,178.07,177.94,0.66]
[1754706886447,16.86,178.07,177.91,5.62051195]
[1754706886448,4.71407844,178.02,177.97,3.27169395]
[1754706886765,4.71407844,178.02,177.97,3.93169395]
[1754706886766,43.29160347,178.01,177.97,3.93169395]
[1754706886930,10.5845078,178.0,177.97,0.66]
[1754706887135,5.87042936,177.99,177.97,0.66]
[1754706887351,3.77098746,177.98,177.97,0.66]
[1754706887667,5.86545739,177.98,177.96,3.27169395]
[1754706887840,3.77098746,177.97,177.96,3.93169395]
[1754706888661,3.77098746,177.97,177.96,5.77948298]
[1754706889148,3.77098746,177.97,177.95,26.0]
[1754706889349,0.71,177.97,177.95,31.11948298]
[1754706889533,3.76031954,177.96,177.95,31.11948298]
[1754706890062,3.76031954,177.96,177.95,5.11948298]
[1754706891454,0.71,177.97,177.95,5.11948298]
[1754706891654,0.71,177.97,177.94,31.11948298]
[1754706891872,0.71,177.96,177.92,26.0]
[1754706892031,0.14216157,177.94,177.89,0.66]
[1754706892238,4.46444718,177.93,177.9,5.11948298]
[1754706892431,0.71,177.93,177.9,5.11948298]
[1754706892662,4.46066703,177.92,177.89,31.77948298]
[1754706892837,0.71,177.92,177.89,31.77948298]
[1754706893236,4.46066703,177.92,177.89,31.77948298]
[1754706893436,0.71,177.92,177.89,31.77948298]
[1754706894165,3.75066703,177.93,177.89,31.11948298]
[1754706894342,41.07,177.94,177.9,31.77948298]
[1754706894736,46.68996811,177.94,177.9,31.77948298]
[1754706895072,0.71,177.93,177.9,31.11948298]
[1754706895244,0.71,177.92,177.9,31.11948298]
[1754706895739,46.68996811,177.94,177.9,5.11948298]
[1754706895950,0.85216157,177.93,177.9,5.11948298]
[1754706896650,0.85216157,177.93,177.9,5.77948298]
[1754706897268,17.74262757,177.93,177.9,5.77948298]
[1754706897841,17.03262757,177.93,177.91,0.66]
[1754706898052,17.03262757,177.93,177.9,5.11948298]
[1754706898245,17.03262757,177.93,177.9,5.77948298]
[1754706898857,40.3,177.95,177.92,5.11948298]
[1754706899063,40.3,177.95,177.92,5.77948298]
[1754706899250,41.01,177.95,177.92,5.11948298]
[1754706899444,40.3,177.95,177.92,5.11948298]
[1754706899665,0.71,177.94,177.92,5.11948298]
[1754706900564,40.3,177.95,177.92,5.11948298]
[1754706900767,40.28,177.95,177.93,5.77948298]
[1754706900970,40.28,177.95,177.94,0.66]
[1754706901272,40.28,177.95,177.89,31.62143576]
[1754706901473,0.71,177.94,177.91,5.11948298]
[1754706901666,0.71,177.93,177.91,5.11948298]
[1754706901869,40.99,177.95,177.91,5.11948298]
[1754706902066,0.71,177.94,177.91,5.11948298]
[1754706902369,0.71,177.94,177.9,0.66]
[1754706902569,0.71,177.93,177.9,5.77948298]
[1754706903168,0.71,177.93,177.9,0.66]
[1754706903476,0.71,177.93,177.91,5.11948298]
[1754706904167,0.71,177.92,177.9,5.11948298]
[1754706904377,0.71,177.92,177.88,0.7]
[1754706904553,0.71,177.92,177.9,5.11948298]
[1754706905192,0.71,177.92,177.86,0.06]
[1754706905193,46.23164455,177.91,177.86,0.06]
[1754706905354,5.11948298,177.89,177.86,0.06]
[1754706905883,0.71,177.88,177.86,0.06]
[1754706906251,5.11948298,177.89,177.86,0.06]
[1754706906451,0.71,177.89,177.86,0.06]
[1754706906887,0.71,177.89,177.86,0.76]
[1754706907388,6.39327,177.89,177.86,0.76]
[1754706907553,5.68327,177.89,177.86,0.06]
[1754706907891,6.39327,177.89,177.86,0.06]
[1754706908386,5.68327,177.89,177.86,5.87948298]
[1754706911070,0.68327,177.89,177.88,5.11948298]
[1754706911269,40.24,177.91,177.88,5.81948298]
[1754706911468,40.24,177.91,177.89,5.81948298]
[1754706912063,40.24,177.91,177.88,5.11948298]
[1754706912260,40.24,177.91,177.88,5.81948298]
[1754706913684,40.24,177.91,177.88,0.7]
[1754706913992,40.24,177.91,177.88,5.81948298]
[1754706914358,0.85216157,177.92,177.88,5.81948298]
[1754706914582,40.2,177.91,177.88,5.81948298]
[1754706914966,40.2,177.91,177.89,5.81948298]
[1754706915283,40.2,177.91,177.9,0.7]
[1754706915585,40.2,177.91,177.89,5.11948298]
[1754706915781,40.2,177.91,177.89,5.81948298]
[1754706919084,40.2,177.91,177.9,0.7]
[1754706919380,40.2,177.91,177.9,5.11948298]
[1754706920493,40.2,177.91,177.9,5.81948298]
[1754706920988,40.2,177.91,177.9,0.7]
[1754706921168,40.2,177.91,177.9,5.81948298]
[1754706921684,16.890466,177.96,177.93,26.0]
[1754706921885,0.71,177.99,177.95,5.11948298]
[1754706922079,0.71,178.01,177.98,5.11948298]
[1754706922285,44.64693354,178.01,177.99,5.11948298]
[1754706922493,40.93,178.01,177.99,5.11948298]
[1754706923360,3.72115299,178.0,177.99,5.11948298]
[1754706923985,40.93,178.01,177.99,5.11948298]
[1754706924186,3.72016446,178.0,177.99,5.11948298]
[1754706924483,40.93,178.01,177.99,5.11948298]
[1754706924875,40.93,178.01,178.0,5.11948298]
[1754706925070,44.65245623,178.01,178.0,5.11948298]
[1754706928793,44.66018347,178.01,178.0,5.11948298]
[1754706928997,44.69018347,178.01,178.0,5.11948298]
[1754706929904,43.98018347,178.01,178.0,5.81948298]
[1754706930980,43.98018347,178.01,178.0,5.11948298]
[1754706932099,3.76018347,178.01,178.0,5.11948298]
[1754706935699,3.76018347,178.01,177.98,0.7]
[1754706935903,3.73018347,178.0,177.99,0.66]
[1754706936203,3.73018347,178.0,177.99,5.77948298]
[1754706937421,0.03,178.01,177.99,5.77948298]
[1754706937590,0.03,178.01,178.0,5.11948298]
[1754706937790,3.76089988,178.01,178.0,5.11948298]
[1754706938394,3.76089988,178.01,177.99,0.66]
[1754706938596,0.03,178.01,178.0,5.11948298]
[1754706938913,3.75912262,178.01,178.0,5.11948298]
[1754706939710,3.75884357,178.01,178.0,5.77948298]
[1754706940015,0.03,178.01,178.0,5.77948298]
[1754706941505,0.03,178.01,178.0,11.3974605]
[1754706942300,0.03,178.01,178.0,26.50367607]
[1754706943613,0.03,178.01,178.0,31.62315905]
[1754706944603,4.4396901,178.07,178.0,31.62315905]
[1754706944604,0.03,178.07,178.01,15.10621557]
[1754706944825,0.71,178.07,178.06,5.11948298]
[1754706945413,0.03,178.07,178.06,5.11948298]
[1754706947824,0.03,178.07,178.06,5.77948298]
[1754706952024,0.03,178.07,178.06,11.39556744]
[1754706952538,0.03,178.07,178.06,5.77948298]
[1754706954039,0.03,178.07,178.06,5.11948298]
[1754706954239,0.71,178.07,178.06,5.11948298]
[1754706955828,0.03,178.07,178.06,5.11948298]
[1754706956220,0.71,178.07,178.06,5.11948298]
[1754706956420,0.71,178.07,178.05,5.11948298]
[1754706958253,5.61608446,178.06,178.05,5.11948298]
[1754706958429,10.020158,178.06,178.01,26.0]
[1754706958621,0.68,178.05,178.02,5.11948298]
[1754706959354,4.40407354,178.05,178.02,5.11948298]
[1754706959553,10.02077816,178.05,178.03,5.11948298]
[1754706959729,0.68,178.04,178.03,5.11948298]
[1754706960252,0.68,178.04,178.01,31.11948298]
[1754706960438,4.40732737,178.04,178.01,31.11948298]
[1754706960628,0.68,178.03,177.99,0.66]
[1754706960948,4.40732737,178.03,177.99,5.11948298]
[1754706961144,3.72732737,178.04,177.99,5.11948298]
[1754706961342,0.68,178.02,177.99,5.11948298]
[1754706961737,6.297407,178.02,177.99,5.11948298]
[1754706962047,0.68,178.02,178.0,5.11948298]
[1754706962247,5.61706301,178.03,178.01,5.11948298]
[1754706962437,3.73253529,178.02,178.01,5.11948298]
[1754706962638,5.61706301,178.03,178.01,5.11948298]
[1754706962954,6.29675935,178.04,178.01,5.11948298]
[1754706963140,3.73337409,178.03,178.01,5.11948298]
[1754706963339,3.73514481,178.02,178.01,5.11948298]
[1754706965159,3.73514481,178.02,178.01,5.83948298]
[1754706965534,45.50588706,178.07,178.01,5.83948298]
[1754706965841,3.74315885,178.06,178.05,5.11948298]
[1754706966047,3.74315885,178.06,178.05,5.83948298]
[1754706971832,3.77315885,178.06,178.05,5.83948298]
[1754706972852,3.77315885,178.06,178.05,5.11948298]
[1754706976742,3.77315885,178.06,178.05,5.83948298]
[1754706982159,3.77315885,178.06,178.05,5.11948298]
[1754706983775,3.77315885,178.06,178.05,11.45588286]
[1754706985254,3.77315885,178.06,178.05,26.56209843]
[1754706985456,3.77315885,178.06,178.05,52.56209843]
[1754706988177,0.03,178.06,178.05,52.56209843]
[1754706988967,0.03,178.06,178.05,26.56209843]
[1754706989572,3.78557088,178.06,178.05,5.11948298]
[1754706990058,4.45557088,178.06,178.05,5.11948298]
[1754706995864,4.45557088,178.06,178.01,87.08383082]
[1754706996085,3.75557088,178.05,178.01,87.08383082]
[1754706996381,3.75557088,178.04,178.03,26.0]
[1754706997281,3.75557088,178.04,178.03,31.11948298]
[1754706998878,4.46557088,178.04,178.03,26.0]
[1754706999091,4.46557088,178.04,178.03,31.11948298]
[1754706999300,4.46557088,178.04,178.03,26.0]
[1754706999593,4.46557088,178.04,178.02,5.11948298]
[1754706999888,4.46557088,178.03,178.02,5.11948298]
[1754707001692,4.46557088,178.03,178.01,5.17948298]
[1754707001885,4.46557088,178.02,178.01,5.17948298]
[1754707003790,3.75557088,178.02,178.01,5.83948298]
[1754707004796,3.75557088,178.02,178.01,5.17948298]
[1754707005165,10.08291724,178.02,178.01,0.06]
[1754707014687,15.20240022,178.02,178.01,0.06]
[1754707015489,10.08291724,178.02,178.01,0.06]
[1754707015996,10.11291724,178.02,178.01,0.06]
[1754707017300,15.23240022,178.02,178.01,0.06]
[1754707018400,10.11291724,178.02,178.01,0.06]
[1754707018603,15.23240022,178.02,178.01,0.06]
[1754707019185,54.75240022,178.02,178.01,0.06]
[1754707019596,49.63291724,178.02,178.01,0.06]
[1754707020287,43.30557088,178.02,178.01,0.72]
[1754707020487,3.78557088,178.02,178.01,0.72]
[1754707022302,3.78557088,178.02,178.01,0.06]
[1754707022979,4.49557088,178.02,178.01,0.06]
[1754707025301,3.78557088,178.02,178.01,0.06]
[1754707025684,3.78557088,178.02,178.01,0.72]
[1754707026189,3.78557088,178.02,178.01,0.06]
[1754707026502,10.09291724,178.02,178.01,0.06]
[1754707032400,49.55291724,178.02,178.01,0.06]
[1754707038088,48.86291724,178.02,178.01,0.06]
[1754707038290,49.55291724,178.02,178.01,0.06]
[1754707040704,49.5406639,178.02,178.01,0.06]
[1754707042007,48.8506639,178.02,178.01,0.06]
[1754707042794,54.21981082,178.02,178.01,0.06]
[1754707042990,56.3000719,178.02,178.01,0.06]
[1754707043195,59.71777985,178.02,178.01,0.06]
[1754707044918,61.96882885,178.02,178.01,0.06]
[1754707046616,57.28968193,178.02,178.01,0.06]
[1754707047799,54.01413555,178.02,178.01,0.06]
[1754707048816,54.01786137,178.02,178.01,0.06]
[1754707050223,57.29340775,178.02,178.01,0.06]
[1754707050911,54.88019718,178.02,178.01,0.06]
[1754707051315,51.6046508,178.02,178.01,0.06]
[1754707052227,50.9146508,178.02,178.01,0.72]
[1754707052404,55.60596709,178.02,178.01,0.72]
[1754707056925,55.60596709,178.02,178.01,0.06]
[1754707058420,50.9146508,178.02,178.01,0.06]
[1754707058825,51.6146508,178.02,178.01,0.06]
[1754707059028,56.31163622,178.02,178.01,0.06]
[1754707059232,51.6146508,178.02,178.01,0.06]
[1754707063032,55.61035187,178.02,178.01,0.06]
[1754707063332,55.61035187,178.02,178.01,0.72]
[1754707063917,50.9146508,178.02,178.01,0.72]
[1754707064112,50.9146508,178.02,178.01,0.06]
[1754707064113,55.61035187,178.02,178.01,0.06]
[1754707064835,56.31237785,178.02,178.01,0.06]
[1754707065331,55.61237785,178.02,178.01,0.06]
[1754707066638,51.61686516,178.02,178.01,0.06]
[1754707070328,56.31079285,178.02,178.01,0.06]
[1754707070527,51.61686516,178.02,178.01,0.06]
[1754707070839,56.31005169,178.02,178.01,0.06]
[1754707071132,56.30943735,178.02,178.01,0.06]
[1754707071339,51.61686516,178.02,178.01,0.06]
[1754707071532,56.30947518,178.02,178.01,0.06]
[1754707071725,51.61686516,178.02,178.01,0.06]
[1754707072855,52.04334987,178.02,178.01,0.06]
[1754707073021,0.42648471,178.01,177.99,0.06]
[1754707073221,50.66083144,178.0,177.99,0.06]
[1754707074053,56.27880896,178.0,177.99,0.06]
[1754707074655,49.96083144,178.0,177.99,0.06]
[1754707074944,43.18331754,178.0,177.99,3.99554638]
[1754707075117,3.74331754,178.0,177.99,3.99554638]
[1754707083161,0.03,178.02,177.99,35.61383954]
[1754707083323,0.03,178.02,178.01,47.99539382]
[1754707083522,0.03,178.02,178.01,63.10160939]
[1754707083725,0.03,178.02,178.01,63.78160939]
[1754707083943,0.03,178.04,178.01,63.78160939]
[1754707084152,0.03,178.04,178.03,44.38176195]
[1754707084661,0.03,178.04,178.03,45.06176195]
[1754707084827,0.03,178.04,178.03,50.67879278]
[1754707091351,0.03,178.04,178.03,90.09879278]
[1754707098960,0.03,178.04,178.03,84.48176195]
[1754707101560,0.03,178.04,178.03,90.09879278]
[1754707102437,0.03,178.04,178.03,68.69554638]
[1754707102841,0.03,178.04,178.03,65.42]
[1754707103041,0.03,178.04,178.03,3.27554638]
[1754707106041,0.03,178.04,178.02,40.14]
[1754707106244,0.73,178.04,178.03,3.27554638]
[1754707106461,0.73,178.04,178.03,29.27554638]
[1754707106668,0.73,178.04,178.03,3.27554638]
[1754707106867,0.73,178.04,178.03,29.27554638]
[1754707107068,0.73,178.04,178.03,3.27554638]
[1754707107363,0.73,178.04,178.02,3.33554638]
[1754707108766,6.346754,178.04,178.02,0.06]
[1754707109145,0.7,178.03,178.02,0.06]
[1754707110950,6.31703083,178.03,178.02,0.06]
[1754707112563,9.59257721,178.03,178.02,0.06]
[1754707115267,6.31703083,178.03,178.02,0.06]
[1754707116474,0.7,178.03,178.02,0.06]
[1754707117146,0.03,178.04,178.02,3.98554638]
[1754707117361,0.03,178.04,178.03,3.27554638]
[1754707117753,0.03,178.04,178.02,3.98554638]
[1754707118268,0.69,178.03,178.02,0.06]
[1754707120156,8.92239767,178.04,178.02,0.06]
[1754707120356,5.64685129,178.04,178.02,0.06]
[1754707120554,6.33685129,178.04,178.02,0.06]
[1754707121156,0.03,178.04,178.02,0.06]
[1754707121351,0.03,178.04,178.02,3.98554638]
[1754707122656,0.03,178.04,178.02,5.82593583]
[1754707123877,0.03,178.04,178.02,0.06]
[1754707124078,0.72,178.04,178.02,0.06]
[1754707127270,0.03,178.04,178.02,0.71]
[1754707130278,0.72,178.04,178.02,0.06]
[1754707132988,0.69,178.03,178.02,0.06]
[1754707133181,6.23242054,178.03,178.02,0.06]
[1754707133888,45.61242054,178.03,178.02,0.06]
[1754707134073,40.49648471,178.03,178.02,0.06]
[1754707134275,45.61242054,178.03,178.02,0.06]
[1754707134994,51.22945137,178.03,178.02,0.06]
[1754707137391,53.48037237,178.03,178.02,0.06]
[1754707139001,60.24231694,178.03,178.02,0.06]
[1754707140601,55.56084226,178.03,178.02,0.06]
[1754707142105,60.2439341,178.03,178.02,0.06]
[1754707142397,55.56084226,178.03,178.02,0.06]
[1754707143182,60.24382211,178.03,178.02,0.06]
[1754707143380,57.99290111,178.03,178.02,0.06]
[1754707143597,53.30992126,178.03,178.02,0.06]
[1754707143798,55.56084226,178.03,178.02,0.06]
[1754707144097,60.24382784,178.03,178.02,0.06]
[1754707144406,55.56084226,178.03,178.02,0.06]
[1754707144780,53.72098315,178.03,178.02,0.06]
[1754707146897,60.00642107,178.03,178.02,0.06]
[1754707147498,60.00722732,178.03,178.02,0.06]
[1754707147810,53.7217894,178.03,178.02,0.06]
[1754707150211,53.0317894,178.03,178.02,0.06]
[1754707150415,53.7017894,178.03,178.02,0.06]
[1754707152915,10.37571268,178.03,178.02,0.06]
[1754707153090,52.19272754,178.03,178.02,0.78]
[1754707154602,47.50479168,178.03,178.02,0.78]
[1754707155228,52.19272754,178.03,178.02,0.78]
[1754707155416,47.50479168,178.03,178.02,0.78]
[1754707156325,52.19272754,178.03,178.02,0.06]
[1754707156519,48.17479168,178.03,178.02,0.06]
[1754707156703,52.86272754,178.03,178.02,0.06]
[1754707157721,52.19272754,178.03,178.02,0.06]
[1754707160209,52.86272754,178.03,178.02,0.06]
[1754707162016,52.19272754,178.03,178.02,0.06]
[1754707164323,53.29213908,178.03,178.02,0.06]
[1754707164513,55.54306108,178.03,178.02,0.06]
[1754707168728,54.4458086,178.03,178.02,0.06]
[1754707168908,52.1948866,178.03,178.02,0.78]
[1754707169110,47.50479168,178.03,178.02,0.78]
[1754707170427,52.1948866,178.03,178.02,0.78]
[1754707170919,47.48479168,178.03,178.02,0.78]
[1754707172409,45.40351554,178.03,178.02,0.78]
[1754707173234,39.36,178.03,178.02,0.78]
[1754707175219,4.72009492,178.04,178.02,0.78]
[1754707175534,39.36,178.03,178.02,0.78]
[1754707180633,0.45648471,178.04,178.02,0.78]
[1754707180812,39.64432314,178.03,178.02,0.78]
[1754707185322,0.28432314,178.03,178.02,0.78]
[1754707185523,39.62432314,178.03,178.02,0.78]
[1754707186337,0.03,178.04,178.02,0.78]
[1754707186636,0.03,178.04,178.03,3.2746626]
[1754707187135,0.03,178.04,178.03,3.9746626]
[1754707191546,0.03,178.04,178.02,0.06]
[1754707191547,1.02432314,178.04,178.02,0.06]
[1754707191728,40.05,178.03,178.02,0.06]
[1754707192423,39.34,178.03,178.02,0.06]
[1754707198354,40.05,178.03,178.02,0.06]
[1754707201035,45.95135397,178.03,178.02,0.06]
[1754707201237,49.36817814,178.03,178.02,0.06]
[1754707201439,51.45271265,178.03,178.02,0.06]
[1754707201836,56.71440997,178.03,178.02,0.06]
[1754707202140,53.70363465,178.03,178.02,0.06]
[1754707202355,50.42897205,178.03,178.02,0.06]
[1754707202537,53.70363465,178.03,178.02,0.06]
[1754707203638,14.36363465,178.03,178.02,0.06]
[1754707203843,52.85601268,178.03,178.02,0.06]
[1754707204070,56.13067528,178.03,178.02,0.06]
[1754707204971,58.38159728,178.03,178.02,0.06]
[1754707205641,56.30086157,178.03,178.02,0.06]
[1754707205858,58.38212266,178.03,178.02,0.06]
[1754707206365,56.30086157,178.03,178.02,0.06]
[1754707206868,53.70042707,178.03,178.02,0.06]
[1754707207461,0.42648471,178.02,178.0,0.06]
[1754707207763,53.70042707,178.03,178.0,0.06]
[1754707207764,48.39346777,178.01,178.0,0.06]
[1754707208867,54.01112969,178.01,178.0,0.06]
[1754707211556,56.09181958,178.01,178.0,0.06]
[1754707212171,54.01112969,178.01,178.0,0.06]
[1754707212375,56.09241648,178.01,178.0,0.06]
[1754707212771,54.01112969,178.01,178.0,0.06]
[1754707215675,56.09177329,178.01,178.0,0.06]
[1754707215980,54.01112969,178.01,178.0,0.06]
[1754707217580,6.04414663,178.01,178.0,0.77]
[1754707217763,45.36414663,178.01,178.0,0.77]
[1754707218150,45.36414663,178.01,178.0,0.06]
[1754707220371,48.63880923,178.01,178.0,0.06]
[1754707222082,9.31880923,178.01,178.0,0.06]
[1754707222291,48.63880923,178.01,178.0,0.06]
[1754707226670,9.31880923,178.01,178.0,0.06]
[1754707226869,48.63880923,178.01,178.0,0.06]
[1754707228870,49.32880923,178.01,178.0,0.06]
[1754707229492,46.05414663,178.01,178.0,0.06]
[1754707229668,49.32880923,178.01,178.0,0.06]
[1754707230381,46.05414663,178.01,178.0,0.06]
[1754707230581,54.01112969,178.01,178.0,0.06]
[1754707230778,49.32880923,178.01,178.0,0.06]
[1754707231789,54.01112969,178.01,178.0,0.06]
[1754707232093,51.41115067,178.01,178.0,0.06]
[1754707232464,52.82218855,178.01,178.0,0.06]
[1754707232686,56.09685115,178.01,178.0,0.06]
[1754707233103,16.08685115,178.01,178.0,0.06]
[1754707233400,14.00450971,178.01,178.0,0.06]
[1754707233589,50.04984711,178.01,178.0,0.06]
[1754707234697,10.72984711,178.01,178.0,0.06]
[1754707234909,50.04984711,178.01,178.0,0.06]
[1754707235592,10.72984711,178.01,178.0,0.06]